fUSD/lending_fUSD_20260128
["ID","MTS","AMOUNT","RATE_DAILY","PERIOD"]
[403821833,1769562641662,-522.0,0.00016064,2]
[403821835,1769562641671,-500.0,0.00016064,2]
[403821837,1769562641680,-1328.0,0.00016064,2]
[403821839,1769562641689,-500.0,0.00016064,2]
[403821841,1769562641700,-500.0,0.00016064,2]
[403821843,1769562641710,-150.0,0.00016064,2]
[403821845,1769562641719,-500.0,0.00016064,2]
[403821846,1769562641729,-150.0,0.00016064,2]
[403821848,1769562641738,-500.0,0.00016064,2]
[403821850,1769562641749,-500.0,0.00016064,2]
[403821853,1769562641761,-500.0,0.00016064,2]
[403821855,1769562641773,-500.0,0.00016064,2]
[403821856,1769562641782,-500.0,0.00016064,2]
[403821858,1769562641792,-500.0,0.00016064,2]
[403821860,1769562641801,-500.0,0.00016064,2]
[403821862,1769562641811,-1492.0,0.00016086,2]
[403821864,1769562641820,-12263.02422115,0.00016091,2]
[403821866,1769562641829,-10422.08048977,0.00016091,2]
[403821868,1769562641839,-522.0,0.00016119,2]
[403821870,1769562641848,-500.0,0.00016119,2]
[403821872,1769562641857,-1328.0,0.00016119,2]
[403821874,1769562641867,-500.0,0.00016119,2]
[403821876,1769562641876,-150.0,0.00016119,2]
[403821878,1769562641885,-500.0,0.00016119,2]
[403821880,1769562641894,-150.0,0.00016119,2]
[403821882,1769562641903,-500.0,0.00016119,2]
[403821884,1769562641913,-500.0,0.00016119,2]
[403821886,1769562641922,-500.0,0.00016119,2]
[403821888,1769562641931,-500.0,0.00016119,2]
[403821890,1769562641941,-500.0,0.00016119,2]
[403821892,1769562641951,-500.0,0.00016119,2]
[403821894,1769562641961,-500.0,0.00016119,2]
[403821896,1769562641971,-500.0,0.00016128,2]
[403821898,1769562641980,-500.0,0.00016128,2]
[403821934,1769562642310,-500.0,0.00016128,2]
[403821936,1769562642320,-500.0,0.00016128,2]
[403821938,1769562642329,-500.0,0.00016128,2]
[403821940,1769562642340,-500.0,0.00016128,2]
[403821942,1769562642349,-500.0,0.00016128,2]
[403821944,1769562642358,-500.0,0.00016128,2]
[403821946,1769562642367,-500.0,0.00016128,2]
[403821948,1769562642375,-500.0,0.00016128,2]
[403821950,1769562642384,-987.63,0.00016128,2]
[403821952,1769562642394,-150.0,0.00016164,2]
[403821954,1769562642403,-150.0,0.00016164,2]
[403821956,1769562642412,-500.0,0.00016164,2]
[403821958,1769562642421,-500.0,0.00016164,2]
[403821960,1769562642430,-150.0,0.00016164,2]
[403821962,1769562642439,-150.0,0.00016164,2]
[403821964,1769562642448,-150.0,0.00016164,2]
[403821966,1769562642457,-500.0,0.00016164,2]
[403821968,1769562642466,-213.19994559,0.00016164,2]
[403821970,1769562642475,-150.0,0.00016164,2]
[403821972,1769562642484,-150.0,0.00016164,2]
[403821974,1769562642493,-150.0,0.00016164,2]
[403821976,1769562642501,-243.9850094,0.00016164,2]
[403821978,1769562642510,-150.0,0.00016164,2]
[403821980,1769562642519,-150.0,0.00016164,2]
[403821982,1769562642528,-150.0,0.00016164,2]
[403821984,1769562642537,-202.67953144,0.00016164,2]
[403821986,1769562642547,-500.0,0.00016164,2]
[403821988,1769562642555,-522.0,0.00016174,2]
[403821990,1769562642564,-571.96088901,0.00016174,2]
[403821992,1769562642573,-1328.0,0.00016174,2]
[403821994,1769562642582,-500.0,0.00016174,2]
[403821996,1769562642591,-250.0,0.00016174,2]
[403821997,1769562642600,-500.0,0.00016174,2]
[403821999,1769562642609,-250.0,0.00016174,2]
[403822001,1769562642618,-500.0,0.00016174,2]
[403822003,1769562642627,-500.0,0.00016174,2]
[403822005,1769562642635,-500.0,0.00016174,2]
[403822007,1769562642644,-500.0,0.00016174,2]
[403822009,1769562642654,-500.0,0.00016174,2]
[403822011,1769562642663,-500.0,0.00016174,2]
[403822013,1769562642672,-500.0,0.00016174,2]
[403822015,1769562642682,-678.15466003,0.00016207,2]
[403822017,1769562642692,-150.0,0.00016219,2]
[403822019,1769562642708,-150.0,0.00016219,2]
[403822021,1769562642718,-500.0,0.00016219,2]
[403822023,1769562642728,-500.0,0.00016219,2]
[403822025,1769562642737,-150.0,0.00016219,2]
[403822027,1769562642747,-150.19824857,0.00016219,2]
[403822029,1769562642756,-150.0,0.00016219,2]
[403822031,1769562642765,-500.0,0.00016219,2]
[403822033,1769562642774,-150.0,0.00016219,2]
[403822035,1769562642785,-150.0,0.00016219,2]
[403822037,1769562642793,-150.0,0.00016219,2]
[403822039,1769562642803,-150.0,0.00016219,2]
[403822041,1769562642811,-500.0,0.00016219,2]
[403822043,1769562642820,-522.0,0.00016229,2]
[403822045,1769562642829,-1328.0,0.00016229,2]
[403822047,1769562642838,-500.0,0.00016229,2]
[403822049,1769562642847,-500.0,0.00016229,2]
[403822051,1769562642856,-500.0,0.00016229,2]
[403822053,1769562642866,-500.0,0.00016229,2]
[403822055,1769562642874,-500.0,0.00016229,2]
[403822057,1769562642884,-465.49006321,0.00016229,2]
[403822059,1769562642893,-500.0,0.00016229,2]
[403822061,1769562642902,-500.0,0.00016229,2]
[403822063,1769562642911,-500.0,0.00016229,2]
[403822065,1769562642920,-150.0,0.00016274,2]
[403822067,1769562642930,-152.19420035,0.00016274,2]
[403822069,1769562642939,-500.0,0.00016274,2]
[403822071,1769562642950,-500.0,0.00016274,2]
[403822073,1769562642959,-240.41327915,0.00016274,2]
[403822075,1769562642968,-150.0,0.00016274,2]
[403822077,1769562642977,-500.0,0.00016274,2]
[403822079,1769562642986,-150.0,0.00016274,2]
[403822081,1769562642995,-150.0,0.00016274,2]
[403822083,1769562643004,-200.0,0.00016274,2]
[403822085,1769562643014,-150.0,0.00016274,2]
[403822087,1769562643022,-500.0,0.00016274,2]
[403822089,1769562643031,-522.0,0.00016284,2]
[403822091,1769562643041,-1328.0,0.00016284,2]
[403822093,1769562643050,-500.0,0.00016284,2]
[403822095,1769562643059,-500.0,0.00016284,2]
[403822097,1769562643068,-500.0,0.00016284,2]
[403822099,1769562643077,-500.0,0.00016284,2]
[403822101,1769562643087,-500.0,0.00016284,2]
[403822103,1769562643096,-610.0,0.00016284,2]
[403822105,1769562643105,-500.0,0.00016284,2]
[403822107,1769562643114,-500.0,0.00016284,2]
[403822110,1769562643123,-510.0,0.00016326,2]
[403822113,1769562643131,-150.0,0.00016328,2]
[403822115,1769562643140,-500.0,0.00016328,2]
[403822117,1769562643149,-500.0,0.00016328,2]
[403822119,1769562643159,-150.0,0.00016328,2]
[403822122,1769562643171,-200.93589511,0.00016328,2]
[403822124,1769562643184,-150.0,0.00016328,2]
[403822126,1769562643194,-500.0,0.00016328,2]
[403822128,1769562643203,-201.72695087,0.00016328,2]
[403822130,1769562643213,-251.7333692,0.00016328,2]
[403822132,1769562643224,-522.0,0.00016338,2]
[403822134,1769562643235,-1328.0,0.00016338,2]
[403822135,1769562643244,-500.0,0.00016338,2]
[403822137,1769562643253,-500.0,0.00016338,2]
[403822139,1769562643262,-500.0,0.00016338,2]
[403822141,1769562643271,-500.0,0.00016338,2]
[403822143,1769562643280,-612.32249886,0.00016338,2]
[403822145,1769562643290,-595.0,0.00016338,2]
[403822147,1769562643299,-500.0,0.00016338,2]
[403822149,1769562643307,-12263.02422115,0.00016349,2]
[403822151,1769562643316,-10422.08048977,0.00016349,2]
[403822153,1769562643326,-265.67975063,0.00016363,2]
[403822155,1769562643334,-500.0,0.00016373,2]
[403822157,1769562643344,-500.0,0.00016373,2]
[403822159,1769562643353,-500.0,0.00016373,2]
[403822161,1769562643362,-500.0,0.00016373,2]
[403822163,1769562643371,-150.0,0.00016383,2]
[403822165,1769562643380,-500.0,0.00016383,2]
[403822167,1769562643389,-500.0,0.00016383,2]
[403822169,1769562643399,-150.0,0.00016383,2]
[403822171,1769562643409,-150.0,0.00016383,2]
[403822173,1769562643418,-500.0,0.00016383,2]
[403822175,1769562643427,-522.0,0.00016393,2]
[403822177,1769562643436,-1328.0,0.00016393,2]
[403822179,1769562643447,-483.0,0.00016393,2]
[403822181,1769562643456,-500.0,0.00016393,2]
[403822183,1769562643466,-500.0,0.00016393,2]
[403822185,1769562643475,-500.0,0.00016393,2]
[403822187,1769562643484,-200.0,0.00016393,2]
[403822189,1769562643493,-987.63,0.00016402,2]
[403822191,1769562643502,-250.0,0.00016438,2]
[403822193,1769562643512,-500.0,0.00016438,2]
[403822195,1769562643521,-500.0,0.00016438,2]
[403822197,1769562643530,-250.0,0.00016438,2]
[403822199,1769562643539,-200.0,0.00016438,2]
[403822201,1769562643548,-500.0,0.00016438,2]
[403822203,1769562643557,-2395.12,0.00016438,2]
[403822205,1769562643566,-2395.12,0.00016438,2]
[403822207,1769562643574,-2395.12,0.00016438,2]
[403822209,1769562643583,-2395.12,0.00016438,2]
[403822211,1769562643592,-2395.12,0.00016438,2]
[403822213,1769562643601,-2395.12,0.00016438,2]
[403822215,1769562643609,-2395.12,0.00016438,2]
[403822217,1769562643618,-2395.12,0.00016438,2]
[403822219,1769562643627,-2395.12,0.00016438,2]
[403822221,1769562643636,-2395.12,0.00016438,2]
[403822223,1769562643645,-2395.12,0.00016438,2]
[403822225,1769562643654,-2395.12,0.00016438,2]
[403822227,1769562643663,-2395.12,0.00016438,2]
[403822229,1769562643672,-2395.12,0.00016438,2]
[403822231,1769562643681,-2395.12,0.00016438,2]
[403822233,1769562643691,-2395.12,0.00016438,2]
[403822235,1769562643701,-2395.12,0.00016438,2]
[403822237,1769562643713,-2395.12,0.00016438,2]
[403822239,1769562643722,-2395.12,0.00016438,2]
[403822241,1769562643731,-2395.12,0.00016438,2]
[403822243,1769562643742,-2395.12,0.00016438,2]
[403822245,1769562643751,-2395.12,0.00016438,2]
[403822247,1769562643760,-2395.12,0.00016438,2]
[403822249,1769562643769,-2395.18309839,0.00016438,2]
[403822251,1769562643780,-542.13465711,0.00016438,2]
[403822253,1769562643789,-500.0,0.00016438,2]
[403822255,1769562643799,-575.71176963,0.00016438,2]
[403822257,1769562643809,-500.0,0.00016438,2]
[403822259,1769562643820,-500.0,0.00016438,2]
[403822261,1769562643830,-500.0,0.00016438,2]
[403822263,1769562643839,-500.0,0.00016438,2]
[403822265,1769562643848,-300.0,0.00016438,2]
[403822267,1769562643857,-522.0,0.00016448,2]
[403822269,1769562643866,-1328.0,0.00016448,2]
[403822271,1769562643875,-200.0,0.00016448,2]
[403822273,1769562643884,-500.0,0.00016448,2]
[403822275,1769562643894,-500.0,0.00016448,2]
[403822277,1769562643902,-3657.3955619,0.00016463,2]
[403822279,1769562643912,-500.0,0.00016493,2]
[403822281,1769562643921,-500.0,0.00016493,2]
[403822282,1769562643930,-500.0,0.00016493,2]
[403822284,1769562643940,-500.0,0.00016493,2]
[403822286,1769562643949,-522.0,0.00016503,2]
[403822288,1769562643958,-1328.0,0.00016503,2]
[403822290,1769562643967,-500.0,0.00016503,2]
[403822292,1769562643977,-500.0,0.00016503,2]
[403822294,1769562643986,-500.0,0.00016548,2]
[403822296,1769562643995,-500.0,0.00016548,2]
[403822298,1769562644005,-500.0,0.00016548,2]
[403822300,1769562644015,-500.0,0.00016548,2]
[403822302,1769562644024,-522.0,0.00016558,2]
[403822304,1769562644033,-1328.0,0.00016558,2]
[403822306,1769562644042,-500.0,0.00016558,2]
[403822308,1769562644051,-500.0,0.00016558,2]
[403822310,1769562644060,-583.50512226,0.00016561,2]
[403822312,1769562644070,-500.0,0.00016602,2]
[403822314,1769562644079,-500.0,0.00016602,2]
[403822316,1769562644088,-500.0,0.00016602,2]
[403822318,1769562644097,-500.0,0.00016602,2]
[403822320,1769562644107,-12263.02422115,0.00016608,2]
[403822322,1769562644116,-10422.08048977,0.00016608,2]
[403822324,1769562644125,-522.0,0.00016612,2]
[403822326,1769562644135,-1328.0,0.00016612,2]
[403822328,1769562644144,-565.69115399,0.00016612,2]
[403822330,1769562644154,-500.0,0.00016612,2]
[403822332,1769562644163,-420.0,0.00016634,2]
[403822334,1769562644172,-170.39037069,0.00016637,2]
[403822336,1769562644181,-648.61197782,0.00016637,2]
[403822339,1769562644191,-250.0,0.00016637,2]
[403822340,1769562644200,-300.0,0.00016637,2]
[403822342,1769562644210,-5000.0,0.00016637,2]
[403822344,1769562644218,-195.0,0.00016637,2]
[403822346,1769562644227,-2500.0,0.00016637,2]
[403822348,1769562644246,-193.0,0.00016637,2]
[403822350,1769562644268,-2553.93048328,0.00016637,2]
[403822352,1769562644288,-250.0,0.00016637,2]
[403822354,1769562644300,-235.41480451,0.00016637,2]
[403822356,1769562644311,-300.0,0.00016637,2]
[403822358,1769562644324,-500.0,0.00016657,2]
[403822361,1769562644335,-500.0,0.00016657,2]
[403822363,1769562644345,-469.57430697,0.00016657,2]
[403822365,1769562644356,-500.0,0.00016657,2]
[403822367,1769562644366,-522.0,0.00016667,2]
[403822369,1769562644375,-1328.0,0.00016667,2]
[403822371,1769562644386,-261.37853467,0.00016667,2]
[403822373,1769562644397,-987.63,0.00016676,2]
[403822375,1769562644408,-150.00163177,0.00016686,2]
[403822377,1769562644417,-500.0,0.00016712,2]
[403822378,1769562644427,-500.0,0.00016712,2]
[403822381,1769562644437,-500.0,0.00016712,2]
[403822382,1769562644448,-1680.0,0.00016718,2]
[403822383,1769562644459,-522.0,0.00016722,2]
[403822384,1769562644468,-1328.0,0.00016722,2]
[403822385,1769562644478,-363.51122534,0.00016767,2]
[403822386,1769562644488,-482.8923735,0.00016767,2]
[403822387,1769562644498,-500.0,0.00016767,2]
[403822388,1769562644509,-522.0,0.00016777,2]
[403822389,1769562644520,-1328.0,0.00016777,2]
[403822390,1769562644529,-500.0,0.00016822,2]
[403822391,1769562644540,-522.0,0.00016832,2]
[403822392,1769562644551,-1328.0,0.00016832,2]
[403822393,1769562644560,-12263.02422115,0.00016866,2]
[403822394,1769562644571,-10422.08048977,0.00016866,2]
[403822395,1769562644580,-500.0,0.00016876,2]
[403822397,1769562644591,-522.0,0.00016886,2]
[403822399,1769562644601,-1328.0,0.00016886,2]
[403822401,1769562644610,-27164.59250006,0.000169,2]
[403822403,1769562644619,-500.0,0.00016921,2]
[403822405,1769562644628,-687.78066829,0.00016921,2]
[403822407,1769562644638,-500.0,0.00016921,2]
[403822409,1769562644648,-1000.44164958,0.00016921,2]
[403822411,1769562644658,-500.0,0.00016931,2]
[403822413,1769562644667,-522.0,0.00016941,2]
[403822415,1769562644682,-1328.0,0.00016941,2]
[403822417,1769562644693,-987.63,0.0001695,2]
[403822419,1769562644705,-225.0,0.00016954,2]
[403822421,1769562644717,-500.0,0.00016986,2]
[403822423,1769562644726,-522.0,0.00016996,2]
[403822425,1769562644736,-1328.0,0.00016996,2]
[403822427,1769562644745,-250.0,0.00017,2]
[403822429,1769562644757,-1000.0,0.00017022,2]
[403822431,1769562644767,-522.0,0.00017051,2]
[403822433,1769562644776,-1328.0,0.00017051,2]
[403822435,1769562644788,-500.0,0.00017098,2]
[403822437,1769562644797,-500.0,0.00017098,2]
[403822439,1769562644807,-500.0,0.00017099,2]
[403822441,1769562644816,-854.2589148,0.00017099,2]
[403822443,1769562644825,-500.0,0.00017099,2]
[403822445,1769562644834,-500.0,0.00017099,2]
[403822447,1769562644843,-500.0,0.00017099,2]
[403822449,1769562644853,-500.0,0.00017099,2]
[403822451,1769562644862,-500.0,0.00017099,2]
[403822453,1769562644871,-500.0,0.00017099,2]
[403822455,1769562644881,-500.0,0.00017099,2]
[403822457,1769562644891,-500.0,0.00017099,2]
[403822459,1769562644901,-578.20924308,0.00017099,2]
[403822461,1769562644911,-500.0,0.00017099,2]
[403822463,1769562644920,-500.0,0.00017099,2]
[403822465,1769562644931,-500.0,0.00017099,2]
[403822467,1769562644941,-500.0,0.00017099,2]
[403822469,1769562644951,-500.0,0.00017099,2]
[403822471,1769562644960,-500.0,0.00017099,2]
[403822473,1769562644969,-500.0,0.00017099,2]
[403822475,1769562644979,-151.0,0.00017099,2]
[403822477,1769562644988,-500.0,0.00017099,2]
[403822479,1769562644997,-500.0,0.00017099,2]
[403822481,1769562645007,-250.0,0.00017099,2]
[403822483,1769562645016,-500.0,0.00017099,2]
[403822485,1769562645025,-250.0,0.00017099,2]
[403822487,1769562645033,-322.6107,0.00017099,2]
[403822489,1769562645042,-500.0,0.00017099,2]
[403822491,1769562645052,-209.40437684,0.00017099,2]
[403822493,1769562645061,-250.0,0.00017099,2]
[403822495,1769562645070,-500.0,0.00017099,2]
[403822497,1769562645079,-250.0,0.00017099,2]
[403822499,1769562645088,-500.0,0.00017099,2]
[403822501,1769562645096,-250.0,0.00017099,2]
[403822503,1769562645106,-250.0,0.00017099,2]
[403822505,1769562645115,-250.0,0.00017099,2]
[403822507,1769562645124,-250.0,0.00017099,2]
[403822509,1769562645132,-250.0,0.00017099,2]
[403822511,1769562645141,-250.0,0.00017099,2]
[403822513,1769562645150,-1000.0,0.00017099,2]
[403822515,1769562645159,-1000.0,0.00017099,2]
[403822517,1769562645169,-250.0,0.00017099,2]
[403822519,1769562645178,-174.61919141,0.00017099,2]
[403822521,1769562645187,-250.0,0.00017099,2]
[403822523,1769562645196,-250.0,0.00017099,2]
[403822525,1769562645205,-250.0,0.00017099,2]
[403822527,1769562645214,-250.0,0.00017099,2]
[403822529,1769562645223,-250.0,0.00017099,2]
[403822531,1769562645232,-250.0,0.00017099,2]
[403822533,1769562645241,-250.0,0.00017099,2]
[403822535,1769562645251,-250.0,0.00017099,2]
[403822537,1769562645260,-250.0,0.00017099,2]
[403822539,1769562645269,-250.0,0.00017099,2]
[403822541,1769562645278,-250.0,0.00017099,2]
[403822543,1769562645287,-250.0,0.00017099,2]
[403822545,1769562645297,-250.0,0.00017099,2]
[403822548,1769562645308,-250.0,0.00017099,2]
[403822549,1769562645319,-250.0,0.00017099,2]
[403822552,1769562645328,-250.0,0.00017099,2]
[403822554,1769562645338,-250.0,0.00017099,2]
[403822556,1769562645348,-250.0,0.00017099,2]
[403822558,1769562645358,-250.0,0.00017099,2]
[403822560,1769562645367,-250.0,0.00017099,2]
[403822562,1769562645377,-250.0,0.00017099,2]
[403822564,1769562645387,-250.0,0.00017099,2]
[403822566,1769562645396,-250.0,0.00017099,2]
[403822568,1769562645405,-250.0,0.00017099,2]
[403822570,1769562645414,-250.0,0.00017099,2]
[403822572,1769562645424,-250.0,0.00017099,2]
[403822574,1769562645433,-250.0,0.00017099,2]
[403822576,1769562645442,-250.0,0.00017099,2]
[403822578,1769562645452,-250.0,0.00017099,2]
[403822580,1769562645461,-250.0,0.00017099,2]
[403822582,1769562645471,-250.0,0.00017099,2]
[403822584,1769562645482,-250.0,0.00017099,2]
[403822586,1769562645491,-522.0,0.00017105,2]
[403822588,1769562645499,-1328.0,0.00017105,2]
[403822590,1769562645508,-12263.02422115,0.00017125,2]
[403822592,1769562645517,-10422.08048977,0.00017125,2]
[403822594,1769562645526,-217.15233878,0.00017154,2]
[403822596,1769562645535,-537.84715226,0.0001716,2]
[403822598,1769562645545,-1340.09486917,0.0001716,2]
[403822600,1769562645554,-225.18697532,0.00017209,2]
[403822602,1769562645563,-987.63,0.00017224,2]
[403822604,1769562645572,-297.22,0.00017233,7]
[403822606,1769562645581,-233.51889341,0.00017264,2]
[403822608,1769562645591,-242.15909246,0.00017319,2]
[403822610,1769562645600,-251.11897888,0.00017374,2]
[403822612,1769562645609,-12263.02422115,0.00017383,2]
[403822614,1769562645618,-10422.08048977,0.00017383,2]
[403822616,1769562645627,-260.4103811,0.00017429,2]
[403822618,1769562645636,-270.0455652,0.00017484,2]
[403822620,1769562645645,-151.0,0.00017497,2]
[403822622,1769562645654,-987.63,0.00017498,2]
[403822624,1769562645663,-5900.0,0.000175,6]
[403822626,1769562645672,-280.03725112,0.00017539,2]
[403822628,1769562645681,-1539.87924959,0.00017561,2]
[403822630,1769562645691,-2716.52952399,0.00017561,2]
[403822632,1769562645700,-4063.76570293,0.00017561,2]
[403822634,1769562645712,-5498.4105,0.00017561,2]
[403822636,1769562645721,-290.39862941,0.00017594,2]
[403822638,1769562645732,-7900.0,0.000176,6]
[403822640,1769562645741,-853.41212699,0.00017615,2]
[403822642,1769562645751,-707.0,0.0001764,2]
[403822644,1769562645760,-12263.02422115,0.00017642,2]
[403822646,1769562645769,-10422.08048977,0.00017642,2]
[403822648,1769562645781,-678.38370831,0.00017647,2]
[403822650,1769562645791,-151.0,0.00017647,2]
[403822652,1769562645799,-181.08010149,0.00017647,2]
[403822654,1769562645808,-301.1433787,0.00017649,2]
[403822656,1769562645817,-877.9814799,0.00017653,2]
[403822658,1769562645827,-707.0,0.0001768,2]
[403822660,1769562645836,-9900.0,0.000177,6]
[403822662,1769562645845,-1000.0,0.00017772,2]
[403822664,1769562645855,-1000.0,0.00017772,2]
[403822666,1769562645863,-1000.0,0.00017772,2]
[403822668,1769562645872,-1000.0,0.00017772,2]
[403822670,1769562645881,-987.63,0.00017772,2]
[403822672,1769562645891,-1500.0,0.000178,2]
[403822674,1769562645900,-1900.0,0.000178,6]
[403822676,1769562645909,-2000.0,0.00017802,2]
[403822678,1769562645918,-2000.0,0.00017802,2]
[403822680,1769562645927,-2000.0,0.00017802,2]
[403822682,1769562645936,-2000.0,0.00017802,2]
[403822684,1769562645945,-2000.0,0.00017802,2]
[403822686,1769562645954,-2000.0,0.00017802,2]
[403822688,1769562645964,-250.0,0.00017808,5]
[403822690,1769562645974,-250.0,0.00017808,5]
[403822692,1769562645983,-250.0,0.00017808,5]
[403822694,1769562645992,-250.0,0.00017808,5]
[403822697,1769562646001,-250.0,0.00017808,5]
[403822700,1769562646011,-250.0,0.00017808,5]
[403822703,1769562646021,-250.0,0.00017808,5]
[403822706,1769562646030,-250.0,0.00017808,5]
[403822709,1769562646039,-250.0,0.00017808,5]
[403822712,1769562646048,-250.0,0.00017808,5]
[403822715,1769562646057,-250.0,0.00017808,5]
[403822718,1769562646066,-250.0,0.00017808,5]
[403822720,1769562646075,-250.0,0.00017808,5]
[403822723,1769562646084,-250.0,0.00017808,5]
[403822725,1769562646093,-250.0,0.00017808,5]
[403822727,1769562646102,-250.0,0.00017808,5]
[403822729,1769562646111,-316.18714,0.00017808,5]
[403822731,1769562646120,-707.0,0.00017875,2]
[403822733,1769562646130,-10130.6755,0.000179,2]
[403822735,1769562646139,-1000.0,0.000179,2]
[403822737,1769562646148,-10000.0,0.000179,2]
[403822739,1769562646158,-2339.51209738,0.000179,2]
[403822741,1769562646167,-1900.0,0.000179,6]
[403822743,1769562646176,-342.16503214,0.000179,3]
[403822745,1769562646185,-7279.67267713,0.000179,2]
[403822747,1769562646195,-744.12497648,0.000179,2]
[403822749,1769562646204,-216.81141859,0.000179,2]
[403822751,1769562646213,-12263.02422115,0.000179,2]
[403822753,1769562646223,-10422.08048977,0.000179,2]
[403822755,1769562646232,-10288.0,0.000179,2]
[403822786,1769562646498,-500.0,0.00017973,2]
[403822788,1769562646508,-150.0,0.00017973,2]
[403822790,1769562646517,-500.0,0.00017982,2]
[403822792,1769562646526,-222.51635275,0.00017982,2]
[403822794,1769562646536,-275.87497014,0.0001799,2]
[403822796,1769562646544,-275.87497014,0.0001799,2]
[403822798,1769562646554,-190.42821464,0.00017997,2]
[403822800,1769562646563,-150.0,0.00017999,2]
[403822802,1769562646572,-232.98074287,0.00017999,2]
[403822804,1769562646581,-155.0,0.00017999,2]
[403822806,1769562646590,-300.0,0.00017999,2]
[403822808,1769562646599,-666.0,0.00017999,2]
[403822811,1769562646609,-298.466,0.00017999,2]
[403822813,1769562646618,-300.0,0.00017999,2]
[403822815,1769562646627,-500.0,0.00017999,2]
[403822817,1769562646635,-300.0,0.00017999,2]
[403822819,1769562646644,-300.0,0.00017999,2]
[403822821,1769562646654,-500.0,0.00017999,2]
[403822823,1769562646663,-500.0,0.00017999,2]
[403822825,1769562646672,-316.26,0.00017999,2]
[403822827,1769562646682,-300.0,0.00017999,2]
[403822829,1769562646691,-300.0,0.00017999,2]
[403822831,1769562646701,-666.0,0.00017999,2]
[403822833,1769562646713,-300.0,0.00017999,2]
[403822835,1769562646722,-300.0,0.00017999,2]
[403822837,1769562646731,-14967.8776706,0.00017999,2]
[403822839,1769562646741,-247457.77579768,0.00018,2]
[403822841,1769562646751,-1191.05553705,0.00018,2]
[403822843,1769562646759,-151.0,0.00018,2]
[403822844,1769562646768,-151.41696632,0.00018,2]
[403822847,1769562646779,-2776431.58150715,0.00018,2]
[403822850,1769562646797,-588.00932753,0.00018,2]
[403822895,1769562647205,-272.59501686,0.00018,2]
[403822930,1769562647763,-2346.55012335,0.00018,2]
[403822932,1769562647776,-2332.63966046,0.00018,2]
[403823353,1769563219365,4223.82160485,0.00012962,2]
[403823354,1769563219393,1852.12839515,0.00012962,2]
[403823356,1769563245466,8147.88160485,9e-05,2]
[403823357,1769563245487,6852.11839515,9e-05,2]
[403823364,1769563499621,931.21,0.00014999,2]
[403823368,1769563583603,200.0,0.00014944,2]
[403823379,1769563741848,500.0,0.0001485,2]
[403823380,1769563744477,195.0,0.00014996,2]
[403823384,1769563818051,779.62,0.00014815,2]
[403823387,1769563832330,-159.13,0.00015143,2]
[403823389,1769563832340,-267.59984792,0.00015452,2]
[403823390,1769563832350,-166.26,0.00015492,2]
[403823392,1769563832359,-150.0059968,0.00015498,2]
[403823395,1769563832368,-832.87,0.00015498,2]
[403823397,1769563832378,-320.44110933,0.00015533,2]
[403823400,1769563832446,-4584.76857913,0.00015533,2]
[403823401,1769563832456,-360.05960988,0.00015552,2]
[403823402,1769563832465,-1200.0,0.00015554,2]